bitfinex-derivatives/quotes_BTCF0:USTF0_20251204
["timestamp","ask_amount","ask_price","bid_price","bid_amount"]
[1764847625874,0.16349762,93067.0,93066.0,0.13074]
[1764847626381,0.09580762,93067.0,93066.0,0.13074]
[1764847627279,0.00024694,93074.0,93073.0,0.1482133]
[1764847627471,0.43055,93087.0,93086.0,0.1482118]
[1764847627774,0.50111,93087.0,93086.0,0.1482118]
[1764847628279,0.50111,93087.0,93086.0,0.13747]
[1764847629282,0.50311,93087.0,93086.0,0.13747]
[1764847630370,0.43955,93087.0,93086.0,0.13947]
[1764847630668,0.3698,93087.0,93086.0,0.13947]
[1764847630872,0.3628,93087.0,93086.0,0.13847]
[1764847631674,0.3618,93087.0,93086.0,0.13847]
[1764847631982,0.50211,93087.0,93086.0,0.13847]
[1764847632384,0.50111,93087.0,93086.0,0.13747]
[1764847632679,0.50211,93087.0,93086.0,0.13947]
[1764847633076,0.50111,93087.0,93086.0,0.13747]
[1764847633282,0.50211,93087.0,93086.0,0.14147]
[1764847633666,0.50111,93087.0,93086.0,0.13747]
[1764847633878,0.50211,93087.0,93086.0,0.14147]
[1764847634979,0.50211,93087.0,93086.0,0.004]
[1764847636285,0.14031,93078.0,93077.0,0.14837394]
[1764847636583,0.50111,93078.0,93077.0,0.14837394]
[1764847636879,0.5118528,93078.0,93077.0,0.14837394]
[1764847637485,0.5128528,93078.0,93077.0,0.15137394]
[1764847638178,0.5374828,93078.0,93077.0,0.00316114]
[1764847638584,0.5128528,93078.0,93077.0,0.00316114]
[1764847638779,0.5128528,93078.0,93077.0,0.14063114]
[1764847639577,0.3618,93078.0,93077.0,0.14063114]
[1764847639783,0.001,93078.0,93077.0,0.14063114]
[1764847641992,0.001,93078.0,93077.0,0.64063114]
[1764847642778,0.14047114,93096.0,93095.0,0.13747]
[1764847643077,0.14047114,93096.0,93095.0,0.1482108]
[1764847643584,0.1643562,93096.0,93095.0,0.1482108]
[1764847643787,0.14047114,93096.0,93095.0,0.1482108]
[1764847643989,0.14147114,93096.0,93095.0,0.1482108]
[1764847644487,0.14547114,93096.0,93095.0,0.1492108]
[1764847644688,0.14447114,93096.0,93095.0,0.1492108]
[1764847647089,0.14447114,93096.0,93095.0,0.1512108]
[1764847647090,0.14147114,93096.0,93095.0,0.1512108]
[1764847647887,0.07091114,93096.0,93095.0,0.1512108]
[1764847648087,0.14147114,93096.0,93095.0,0.1512108]
[1764847661085,0.00116114,93096.0,93095.0,0.1512108]
[1764847661288,0.49095,93107.0,93106.0,0.1453495]
[1764847662396,0.49195,93107.0,93106.0,0.1453495]
[1764847662698,0.49395,93107.0,93106.0,0.1463495]
[1764847663688,0.49295,93107.0,93106.0,0.1483495]
[1764847664192,0.49195,93107.0,93106.0,0.1483495]
[1764847669402,0.3618,93107.0,93106.0,0.1483495]
[1764847669600,0.43011,93107.0,93106.0,0.1483495]
[1764847669800,0.49513,93107.0,93106.0,0.1483495]
[1764847671798,0.13433,93107.0,93106.0,0.1483495]
[1764847674604,0.001,93107.0,93106.0,0.1483495]
[1764847675896,0.13433,93107.0,93106.0,0.1483495]
[1764847678100,0.13433,93107.0,93097.0,0.00016114]
[1764847678101,0.0107405,93098.0,93097.0,0.00016114]
[1764847678402,0.52872353,93098.0,93097.0,0.00016114]
[1764847678794,0.1440723,93082.0,93081.0,0.1467824]
[1764847680001,0.1450723,93082.0,93081.0,0.1507824]
[1764847682306,0.1450723,93082.0,93081.0,0.1497824]
[1764847684609,0.5058723,93082.0,93081.0,0.003]
[1764847684913,0.52969768,93082.0,93081.0,0.003]
[1764847687110,0.5058723,93082.0,93081.0,0.003]
[1764847699123,0.5058723,93082.0,93081.0,0.07107]
[1764847699319,0.5058723,93082.0,93081.0,0.003]
[1764847700327,0.5058723,93082.0,93081.0,0.13152]
[1764847700527,0.13433,93082.0,93081.0,0.13152]
[1764847701628,0.49513,93082.0,93081.0,0.13152]
[1764847702841,0.49513,93082.0,93081.0,0.003]
[1764847703034,0.49513,93082.0,93081.0,0.07107]
[1764847703425,0.49513,93082.0,93081.0,0.13152]
[1764847705738,0.49513,93082.0,93081.0,0.003]
[1764847706139,0.49513,93082.0,93081.0,0.07107]
[1764847706831,0.49513,93082.0,93081.0,0.13152]
[1764847707236,0.51887705,93082.0,93081.0,0.13152]
[1764847712446,0.15807705,93082.0,93081.0,0.13152]
[1764847712645,0.51887705,93082.0,93081.0,0.13152]
[1764847729044,0.38554705,93082.0,93081.0,0.13152]
[1764847729239,0.10467114,93091.0,93090.0,0.1166114]
[1764847730253,0.46547114,93091.0,93090.0,0.1166114]
[1764847730644,0.46547114,93091.0,93090.0,0.1176114]
[1764847730844,0.46747114,93091.0,93090.0,0.1176114]
[1764847731543,0.46847114,93091.0,93090.0,0.1176114]
[1764847732253,0.46747114,93091.0,93090.0,0.1176114]
[1764847733156,0.46647114,93091.0,93090.0,0.1196114]
[1764847736650,0.10567114,93091.0,93090.0,0.1196114]
[1764847739153,0.00116114,93091.0,93090.0,0.1196114]
[1764847739352,0.10567114,93091.0,93090.0,0.1196114]
[1764847743047,0.10567114,93091.0,93090.0,0.003]
[1764847743254,0.12928368,93091.0,93090.0,0.003]
[1764847752055,0.10879,93082.0,93078.0,0.0107426]
[1764847752261,0.46959,93079.0,93078.0,0.0107426]
[1764847752654,0.46959,93079.0,93078.0,0.0644426]
[1764847752962,0.10879,93073.0,93072.0,0.05386114]
[1764847753261,0.10879,93073.0,93072.0,0.10893114]
[1764847753848,0.1195333,93073.0,93072.0,0.11967454]
[1764847754449,0.1205333,93073.0,93072.0,0.12467454]
[1764847757367,0.10979,93073.0,93072.0,0.12467454]
[1764847767376,0.10979,93073.0,93072.0,0.15788454]
[1764847767775,0.10979,93073.0,93072.0,0.12467454]
[1764847768478,0.10979,93073.0,93072.0,0.01590454]
[1764847768779,0.10979,93073.0,93072.0,0.12467454]
[1764847768980,0.10979,93073.0,93057.0,0.0770044]
[1764847768981,0.1195338,93069.0,93057.0,0.0770044]
[1764847769175,0.10879,93047.0,93046.0,0.00026869]
[1764847769678,0.13238605,93047.0,93046.0,0.10903869]
[1764847770380,0.13238605,93047.0,93046.0,0.01219657]
[1764847770381,0.10879,93047.0,93046.0,0.01219657]
[1764847770679,0.10979,93047.0,93046.0,0.01319657]
[1764847770982,0.13336747,93047.0,93046.0,0.01319657]
[1764847771172,0.10979,93047.0,93046.0,0.01319657]
[1764847773770,0.10979,93047.0,93046.0,0.06689657]
[1764847773971,0.10979,93047.0,93046.0,0.11357657]
[1764847774383,0.10979,93047.0,93046.0,0.06689657]
[1764847774579,0.10979,93047.0,93046.0,0.11357657]
[1764847784886,0.1205363,93047.0,93046.0,0.11357657]
[1764847785785,0.10979,93047.0,93046.0,0.11357657]
[1764847789979,0.001,93047.0,93046.0,0.11357657]
[1764847790476,0.09636,93047.0,93046.0,0.11357657]
[1764847795392,0.1071063,93047.0,93046.0,0.11357657]
[1764847799492,0.09636,93047.0,93046.0,0.11357657]
[1764847806001,0.1198932,93047.0,93046.0,0.11357657]
[1764847806803,0.09636,93047.0,93046.0,0.11357657]
[1764847807097,0.45716,93047.0,93046.0,0.11357657]
[1764847807295,0.3618,93047.0,93046.0,0.11357657]
[1764847807694,0.001,93047.0,93046.0,0.11357657]
[1764847810002,0.04661,93047.0,93046.0,0.11357657]
[1764847810299,0.001,93047.0,93046.0,0.11357657]
[1764847810497,0.0886,93047.0,93046.0,0.11357657]
[1764847813505,0.04661,93047.0,93046.0,0.11357657]
[1764847813694,0.0886,93047.0,93046.0,0.11357657]
[1764847815702,0.001,93047.0,93046.0,0.11357657]
[1764847815893,0.04661,93047.0,93046.0,0.11357657]
[1764847816288,0.001,93047.0,93046.0,0.11357657]
[1764847818103,0.00016114,93056.0,93055.0,0.11796]
[1764847819107,0.00016114,93056.0,93055.0,0.17595521]
[1764847819404,0.00716114,93056.0,93055.0,0.11796]
[1764847820798,0.40641,93068.0,93067.0,0.09276]
[1764847820997,0.3608,93068.0,93067.0,0.103504]
[1764847822408,0.3628,93068.0,93067.0,0.103504]
[1764847822606,0.00016114,93077.0,93076.0,0.103503]
[1764847822809,0.3608,93087.0,93086.0,0.1035018]
[1764847822810,0.4484,93087.0,93086.0,0.1035018]
[1764847824101,0.4524,93087.0,93086.0,0.1045018]
[1764847825406,0.0876,93071.0,93062.0,0.05792256]
[1764847825611,0.0876,93058.0,93056.0,0.05792256]
[1764847825809,0.0876,93047.0,93046.0,0.11570297]
[1764847826105,0.2508617,93060.0,93059.0,0.103505]
[1764847826314,0.0983449,93060.0,93059.0,0.103505]
[1764847826612,0.0983452,93057.0,93056.0,0.09276]
[1764847828310,0.1003452,93057.0,93056.0,0.09876]
[1764847829613,0.0896,93057.0,93056.0,0.09876]
[1764847829908,0.0896,93057.0,93056.0,0.006]
[1764847830714,0.0896,93057.0,93056.0,0.05244]
[1764847830911,0.0896,93057.0,93056.0,0.0631853]
[1764847831211,0.0896,93057.0,93056.0,0.006]
[1764847831621,0.002,93057.0,93056.0,0.09876]
[1764847832101,0.00016114,93069.0,93068.0,0.09276]
[1764847832806,0.00016114,93069.0,93068.0,0.1035039]
[1764847833522,0.00116114,93069.0,93068.0,0.1075039]
[1764847834414,0.00216114,93069.0,93068.0,0.1065039]
[1764847834918,0.00216114,93069.0,93068.0,0.6065039]
[1764847835618,0.84876114,93069.0,93068.0,0.40808068]
[1764847835920,0.87224777,93069.0,93068.0,0.40808068]
[1764847836303,0.03454,93055.0,93054.0,0.10574]
[1764847836506,0.4060854,93055.0,93054.0,0.10574]
[1764847837709,0.4080854,93055.0,93054.0,0.11174]
[1764847838606,0.4090854,93055.0,93054.0,0.11174]
[1764847839219,0.4080854,93055.0,93054.0,0.11174]
[1764847839417,0.4090854,93055.0,93054.0,0.11174]
[1764847840219,0.4070854,93055.0,93054.0,0.10574]
[1764847840412,0.4090854,93055.0,93054.0,0.10574]
[1764847842520,0.4080854,93055.0,93054.0,0.10574]
[1764847843115,0.39534,93055.0,93054.0,0.10574]
[1764847843312,0.3628,93055.0,93054.0,0.10574]
[1764847843718,0.002,93055.0,93054.0,0.10574]
[1764847844023,0.0280144,93064.0,93063.0,0.0822]
[1764847844212,0.0452844,93064.0,93063.0,0.0822]
[1764847845118,0.0452844,93064.0,93063.0,0.0929445]
[1764847845517,0.0452854,93055.0,93054.0,0.06568]
[1764847845723,0.0452859,93051.0,93050.0,0.04230114]
[1764847846018,0.0452859,93051.0,93050.0,0.08236114]
[1764847847022,0.0472859,93051.0,93050.0,0.08236114]
[1764847859435,0.07068137,93051.0,93050.0,0.08236114]
[1764847860339,0.0472859,93051.0,93050.0,0.08236114]
[1764847860538,0.0683263,93047.0,93046.0,9e-08]
[1764847860737,0.0683263,93047.0,93024.0,0.02789]
[1764847860738,0.0683273,93039.0,93024.0,0.02789]
[1764847860938,0.0683289,93025.0,93024.0,0.07239]
[1764847861236,0.4291289,93025.0,93024.0,0.11469]
[1764847861532,0.05758,93022.0,93021.0,0.05026]
[1764847861941,0.05767244,93022.0,93021.0,0.09256]
[1764847862927,0.05967244,93022.0,93021.0,0.09256]
[1764847863337,0.00209244,93022.0,93021.0,0.09256]
[1764847863935,0.00309244,93022.0,93021.0,0.09256]
[1764847864135,2.44e-06,93022.0,93021.0,0.09256]
[1764847864332,0.00016124,93032.0,93031.0,0.0943882]
[1764847865536,0.00216124,93032.0,93031.0,0.0943882]
[1764847866044,0.00216124,93032.0,93031.0,0.5943882]
[1764847866241,0.00316124,93032.0,93031.0,0.5943882]
[1764847882247,0.00316124,93032.0,93031.0,0.65221599]
[1764847884052,0.3608,93047.0,93046.0,0.0107465]
[1764847884247,0.3608,93047.0,93046.0,0.0943865]
[1764847884744,0.4148,93047.0,93046.0,0.0943865]
[1764847884945,0.43817704,93047.0,93046.0,0.0943865]
[1764847885152,0.44117704,93047.0,93046.0,0.0953865]
[1764847885353,0.44317704,93047.0,93046.0,0.0953865]
[1764847887256,0.41617704,93047.0,93046.0,0.0953865]
[1764847887455,0.38917704,93047.0,93046.0,0.0953865]
[1764847887756,0.3658,93047.0,93046.0,0.0953865]
[1764847889951,0.005,93047.0,93046.0,0.0953865]
[1764847890351,0.032,93047.0,93046.0,0.5953865]
[1764847891458,0.005,93047.0,93046.0,0.5953865]
[1764847894359,0.00016124,93056.0,93055.0,0.1160754]
[1764847894760,0.02355471,93056.0,93055.0,0.1160754]
[1764847895853,0.02655471,93056.0,93055.0,0.1160754]
[1764847896554,0.02655471,93056.0,93046.0,0.0117465]
[1764847896555,0.0417863,93047.0,93046.0,0.04282]
[1764847896759,0.42597977,93047.0,93046.0,0.08144]
[1764847898056,0.42797977,93047.0,93046.0,0.08844]
[1764847902161,0.42797977,93047.0,93046.0,0.0991865]
[1764847902362,0.42797977,93047.0,93046.0,0.08844]
[1764847906569,0.42797977,93047.0,93046.0,0.0991865]
[1764847906772,0.41723347,93047.0,93046.0,0.0991865]
[1764847907659,0.41723347,93047.0,93046.0,0.08844]
[1764847909162,0.41723347,93047.0,93046.0,0.007]
[1764847909364,0.0380074,93038.0,93037.0,0.00016124]
[1764847909664,0.42230651,93038.0,93037.0,0.00016124]
[1764847910667,0.42430651,93038.0,93037.0,0.01016124]
[1764847912264,0.42230651,93038.0,93037.0,0.00016124]
[1764847912471,0.42430651,93038.0,93037.0,0.00716124]
[1764847912866,0.0380092,93022.0,93021.0,0.08036]
[1764847913169,0.42228612,93022.0,93021.0,0.00576]
[1764847913471,0.42227466,93022.0,93021.0,0.00576]
[1764847914062,0.42427466,93022.0,93021.0,0.00876]
[1764847916079,0.42427466,93022.0,93021.0,0.00676]
[1764847916271,0.42427466,93022.0,93021.0,0.00576]
[1764847916570,0.4008092,93022.0,93021.0,0.00576]
[1764847918870,0.39006,93022.0,93021.0,0.08036]
[1764847920068,0.37643,93022.0,93021.0,0.08036]
[1764847920271,0.3628,93022.0,93021.0,0.08036]
[1764847920573,0.39006,93022.0,93021.0,0.08036]
[1764847920874,0.4008092,93022.0,93021.0,0.04266]
[1764847921371,0.4008092,93022.0,93021.0,0.08036]
[1764847922268,0.4008092,93022.0,93006.0,0.0002688]
[1764847922269,0.038011,93007.0,93006.0,0.0002688]
[1764847922473,0.759611,93007.0,93006.0,0.0002688]
[1764847923172,0.759611,93007.0,93006.0,0.0974288]
[1764847923372,0.75086,93007.0,93006.0,0.0974288]
[1764847923585,0.75086,93007.0,93006.0,0.0984288]
[1764847924266,0.3628,93007.0,93006.0,0.0984288]
[1764847924474,0.002,93007.0,93006.0,0.0984288]
[1764847924666,0.01038,93007.0,93006.0,0.0984288]
[1764847925060,0.01876,93007.0,93006.0,0.0984288]
[1764847925268,0.37956,93007.0,93006.0,0.0984288]
[1764847930465,0.37956,93007.0,93006.0,0.0985788]
[1764847934366,0.37956,93007.0,93006.0,0.0012688]
[1764847934571,0.37956,93007.0,93006.0,0.0985788]
[1764847936871,0.37118,93007.0,93006.0,0.0985788]
[1764847937077,0.3628,93007.0,93006.0,0.0985788]
[1764847937468,0.4030538,93007.0,93006.0,0.0985788]
[1764847939968,0.4030538,93007.0,93006.0,0.0012688]
[1764847942176,0.0275117,93001.0,93000.0,0.01]
[1764847942368,0.4118055,93001.0,93000.0,0.0864]
[1764847942568,0.4010538,93001.0,93000.0,0.0864]
[1764847942972,0.4010538,93001.0,93000.0,0.04922]
[1764847943175,0.3842938,93001.0,93000.0,0.0864]
[1764847943780,0.3985138,93001.0,93000.0,0.0864]
[1764847943968,0.3985138,93001.0,93000.0,0.0884]
[1764847944575,0.4005138,93001.0,93000.0,0.0884]
[1764847947475,0.3934038,93001.0,93000.0,0.0884]
[1764847947676,0.3862938,93001.0,93000.0,0.0884]
[1764847950476,0.3934038,93001.0,93000.0,0.0884]
[1764847950781,0.4005138,93001.0,93000.0,0.0884]
[1764847954471,0.4005138,93001.0,93000.0,0.012]
[1764847954867,0.0107518,93000.0,92988.0,0.0569]
[1764847955082,0.3608,92989.0,92988.0,0.0569]
[1764847955281,0.3842938,92989.0,92988.0,0.08931]
[1764847955478,0.3950468,92989.0,92988.0,0.08931]
[1764847956181,0.3950468,92989.0,92988.0,0.09231]
[1764847957584,0.3980468,92989.0,92988.0,0.09231]
[1764847960684,0.3980468,92989.0,92988.0,0.003]
[1764847963786,0.4719468,92989.0,92988.0,0.003]
[1764847964179,0.3980468,92989.0,92988.0,0.003]
[1764847968387,0.3980468,92989.0,92988.0,0.08637]
[1764847969993,0.4480468,92989.0,92988.0,0.003]
[1764847970193,0.3980468,92989.0,92988.0,0.003]
[1764847970388,0.4480468,92989.0,92988.0,0.003]
[1764847971097,0.3980468,92989.0,92988.0,0.003]
[1764847971888,0.4480468,92989.0,92988.0,0.003]
[1764847972089,0.3980468,92989.0,92988.0,0.003]
[1764847972284,0.4380468,92989.0,92988.0,0.003]
[1764847972494,0.010757,92955.0,92947.0,0.0770044]
[1764847972691,0.0107601,92929.0,92925.0,0.11554006]
[1764847972890,0.7216,92927.0,92926.0,0.06405903]
[1764847973198,0.7216,92927.0,92926.0,0.33289903]
[1764847973597,0.7216888,92927.0,92926.0,0.33289903]
[1764847973793,0.7216888,92927.0,92918.0,0.01958]
[1764847973794,0.010762,92912.0,92900.0,0.05]
[1764847974094,0.72168831,92912.0,92911.0,0.08337]
[1764847974294,0.3608,92925.0,92924.0,0.06379]
[1764847974691,0.7216,92925.0,92924.0,0.06379]
[1764847975788,0.7216,92925.0,92924.0,0.0745506]
[1764847976598,0.7236,92925.0,92924.0,0.0745506]
[1764847977200,0.7236,92925.0,92922.0,0.0107607]
[1764847977503,0.7236,92925.0,92924.0,0.06379]
[1764847977897,0.7246,92925.0,92924.0,0.06379]
[1764847979408,0.7236,92925.0,92924.0,0.06379]
[1764847979603,0.7236,92925.0,92911.0,0.01958]
[1764847979799,0.3608,92912.0,92911.0,0.01958]
[1764847980207,0.3608,92912.0,92911.0,0.28788833]
[1764847981408,0.3638,92912.0,92911.0,0.28888833]
[1764847982302,0.3638,92912.0,92911.0,0.28988833]
[1764847982809,0.3638,92912.0,92911.0,0.35367833]
[1764847984209,0.003,92912.0,92911.0,0.35367833]
[1764847985104,0.09104,92912.0,92911.0,0.77030833]
[1764847985313,0.45184,92912.0,92911.0,0.85973833]
[1764847986605,0.45184,92912.0,92911.0,0.35973833]
[1764847987910,0.39723,92912.0,92911.0,0.35973833]
[1764847988106,0.3638,92912.0,92911.0,0.35973833]
[1764847990705,0.3638,92912.0,92911.0,0.32973833]
[1764847990905,0.3638,92912.0,92911.0,0.72973833]
[1764847991101,0.3638,92912.0,92911.0,0.62910833]
[1764847991102,0.09104,92912.0,92911.0,0.62910833]
[1764847991320,0.45184,92912.0,92911.0,0.76830833]
[1764847992411,0.45184,92912.0,92911.0,0.5]
[1764847992603,0.45184,92912.0,92911.0,0.76830833]
[1764847992809,0.45184,92912.0,92911.0,0.5]
[1764847993010,0.08804,92901.0,92900.0,0.05]
[1764847993211,0.4596032,92901.0,92900.0,0.31830833]
[1764847994010,0.45184,92901.0,92900.0,0.31830833]
[1764847994218,0.45184,92901.0,92900.0,0.31930833]
[1764847994412,0.39723,92901.0,92900.0,0.31930833]
[1764847994613,0.003,92901.0,92900.0,0.40873833]
[1764847995004,0.00016142,92910.0,92909.0,0.1001923]
[1764847995420,0.03359142,92910.0,92909.0,0.1001923]
[1764847995716,0.08820142,92910.0,92909.0,0.1001923]
[1764847995910,0.08804,92901.0,92900.0,0.90873833]
[1764847996108,0.08804,92901.0,92900.0,0.85233833]
[1764847996109,0.44884,92901.0,92900.0,0.85233833]
[1764847996309,0.4596032,92901.0,92900.0,0.83007163]
[1764847997210,0.4626032,92901.0,92900.0,0.32907163]
[1764847997411,0.45184,92901.0,92900.0,0.36210163]
[1764847997812,0.45184,92901.0,92900.0,0.32907163]
[1764847998015,0.45184,92901.0,92900.0,0.31830833]
[1764847998216,0.45184,92901.0,92900.0,0.052]
[1764848000422,0.47532647,92901.0,92900.0,0.052]
[1764848002227,0.47532647,92901.0,92900.0,0.32030833]
[1764848002524,0.0988049,92887.0,92886.0,0.00026915]
[1764848002725,0.08804,92876.0,92875.0,0.03314085]
[1764848002927,0.47237787,92876.0,92875.0,0.08954085]
[1764848003126,0.38433787,92876.0,92875.0,0.31956918]
[1764848003428,0.38433787,92876.0,92875.0,0.23013918]
[1764848003429,0.47236391,92876.0,92875.0,0.23013918]
[1764848003630,0.47236391,92876.0,92875.0,0.31956918]
[1764848003822,0.47536391,92876.0,92875.0,0.31956918]
[1764848006137,0.47436391,92876.0,92875.0,0.31956918]
[1764848006326,0.45084,92876.0,92875.0,0.31956918]
[1764848006716,0.45084,92876.0,92875.0,0.26316918]
[1764848006928,0.45184,92876.0,92875.0,0.26316918]
[1764848007727,0.44984,92876.0,92875.0,0.26316918]
[1764848007934,0.45184,92876.0,92875.0,0.26316918]
[1764848008637,0.52574,92876.0,92875.0,0.26316918]
[1764848009322,0.52474,92876.0,92875.0,0.26316918]
[1764848009519,0.52574,92876.0,92875.0,0.26316918]
[1764848009731,0.52374,92876.0,92875.0,0.26316918]
[1764848009922,0.52574,92876.0,92875.0,0.26316918]
[1764848010324,0.52574,92876.0,92875.0,0.31956918]
[1764848010529,0.52374,92876.0,92875.0,0.31956918]
[1764848010725,0.52574,92876.0,92875.0,0.31956918]
[1764848010932,0.47113,92876.0,92875.0,0.31956918]
[1764848011129,0.52574,92876.0,92875.0,0.31956918]
[1764848011331,0.45184,92876.0,92875.0,0.31956918]
[1764848013733,0.4626061,92876.0,92875.0,0.23013918]
[1764848016643,0.9738,92876.0,92828.0,0.07675389]
[1764848016937,0.9738,92876.0,92826.0,0.03864]
[1764848016938,0.0107719,92827.0,92826.0,0.03864]
[1764848017333,0.3715719,92827.0,92826.0,0.03864]
[1764848017736,0.37166959,92827.0,92826.0,0.16207]
[1764848018140,0.36089769,92827.0,92826.0,0.16207]
[1764848019128,0.36089769,92827.0,92826.0,0.09292]
[1764848019534,0.36289769,92827.0,92826.0,0.16207]
[1764848019835,0.36389769,92827.0,92826.0,0.1728419]
[1764848020238,0.0107725,92822.0,92817.0,0.09292]
[1764848020437,0.3608,92818.0,92817.0,0.16207]
[1764848020635,0.36088611,92818.0,92817.0,0.16207]
[1764848022643,0.36188611,92818.0,92817.0,0.16207]
[1764848022834,0.36388611,92818.0,92817.0,0.16207]
[1764848023434,0.36288611,92818.0,92817.0,0.16207]
[1764848032051,0.36288611,92818.0,92817.0,0.17449]
[1764848032640,0.36388611,92818.0,92817.0,0.17449]
[1764848033044,0.24097611,92818.0,92817.0,0.17449]
[1764848034453,0.00308611,92818.0,92817.0,0.17449]
[1764848034645,0.00308611,92818.0,92817.0,0.17549]
[1764848035242,0.00308611,92818.0,92817.0,0.17449]
[1764848035549,0.00308611,92818.0,92817.0,0.17549]
[1764848035954,0.3608,92827.0,92817.0,0.17549]
[1764848035955,0.3608,92827.0,92826.0,0.20778]
[1764848036652,0.23789,92827.0,92826.0,0.70778]
[1764848037255,0.38623,92827.0,92826.0,0.66311]
[1764848037442,0.38623,92827.0,92826.0,0.70778]
[1764848037750,0.38823,92827.0,92826.0,0.70778]
[1764848037953,0.38823,92827.0,92826.0,0.20778]
[1764848040551,0.31424,92827.0,92826.0,0.20778]
[1764848040750,0.23989,92827.0,92826.0,0.20778]
[1764848042260,0.23989,92827.0,92826.0,0.20778]
[1764848043060,0.31424,92827.0,92826.0,0.20778]
[1764848043667,0.38823,92827.0,92826.0,0.20778]
[1764848045061,0.38623,92827.0,92826.0,0.20778]
[1764848045263,0.38823,92827.0,92826.0,0.20778]
[1764848046250,0.41179344,92827.0,92826.0,0.20778]
[1764848046851,0.21598844,92827.0,92826.0,0.20778]
[1764848047051,0.00016151,92836.0,92835.0,0.1752909]
[1764848047453,0.00016151,92836.0,92835.0,1.6752909]
[1764848047655,0.00016151,92836.0,92835.0,2.1752909]
[1764848048349,0.00116151,92836.0,92835.0,2.1752909]
[1764848048550,0.00316151,92836.0,92835.0,2.1752909]
[1764848054961,0.00316151,92836.0,92835.0,0.5]
[1764848054962,0.53051151,92836.0,92835.0,0.5]
[1764848056058,0.1773219,92826.0,92825.0,0.175292]
[1764848056263,0.16655,92826.0,92825.0,0.175292]
[1764848057067,0.19154473,92835.0,92834.0,0.16452]
[1764848057068,0.27104473,92835.0,92834.0,0.16452]
[1764848057261,0.0795,92835.0,92834.0,0.16452]
[1764848057666,0.36296151,92836.0,92835.0,0.1752909]
[1764848057869,0.36096151,92836.0,92835.0,0.1752909]
[1764848058769,0.00016151,92836.0,92835.0,0.1752909]
[1764848060063,0.00216151,92836.0,92835.0,0.1752909]
[1764848060470,0.00316151,92836.0,92835.0,0.1752909]
[1764848065068,0.01393231,92836.0,92835.0,0.1752909]
[1764848065261,0.00316151,92836.0,92835.0,0.1752909]
[1764848067770,0.0107699,92844.0,92843.0,0.1752898]
[1764848067971,0.03421389,92844.0,92843.0,0.1752898]
[1764848068178,0.0107681,92859.0,92843.0,0.1752898]
[1764848068179,0.3608,92863.0,92862.0,0.1752877]
[1764848068874,0.52735,92863.0,92862.0,0.16452]
[1764848069769,0.52735,92863.0,92856.0,0.05322]
[1764848069770,0.1773183,92857.0,92856.0,0.16452]
[1764848070264,0.1773183,92857.0,92856.0,0.07872]
[1764848070464,0.16655,92857.0,92853.0,0.0001616]
[1764848070671,0.5381187,92854.0,92853.0,0.1646816]
[1764848072174,0.5381187,92854.0,92853.0,0.0788816]
[1764848072973,0.5401187,92854.0,92853.0,0.0868816]
[1764848073691,0.5401187,92854.0,92853.0,0.0081616]
[1764848078280,0.5401187,92854.0,92853.0,0.0919116]
[1764848078582,0.5401187,92854.0,92853.0,0.1727416]
[1764848079384,0.5401187,92854.0,92853.0,0.0919116]
[1764848079678,0.1758811,92833.0,92832.0,0.2178]
[1764848081084,0.1758811,92833.0,92832.0,0.2188]
[1764848081286,0.1758811,92833.0,92832.0,0.16558]
[1764848082188,0.1778811,92833.0,92832.0,0.17558]
[1764848082786,0.1778811,92833.0,92832.0,0.011]
[1764848082986,0.1683725,92821.0,92820.0,0.15649]
[1764848083287,0.5291725,92821.0,92820.0,0.20474]
[1764848083481,0.3608,92821.0,92820.0,0.20474]
[1764848083790,0.44257,92823.0,92822.0,0.15649]
[1764848083996,0.3608,92823.0,92822.0,0.15649]
[1764848084790,0.44257,92823.0,92822.0,0.15649]
[1764848084986,0.44357,92823.0,92822.0,0.15649]
[1764848085180,0.5194,92823.0,92822.0,0.15649]
[1764848085381,0.1576,92814.0,92813.0,0.20474]
[1764848086180,0.5363339,92823.0,92822.0,0.15649]
[1764848086485,0.1576,92814.0,92813.0,0.20474]
[1764848086783,0.1576,92814.0,92813.0,0.15649]
[1764848087382,0.5184,92814.0,92813.0,0.15649]
[1764848088487,0.5234,92814.0,92813.0,0.15649]
[1764848090190,0.5341733,92814.0,92813.0,0.15649]
[1764848091388,0.5341733,92814.0,92813.0,0.20474]
[1764848091596,0.5341733,92814.0,92813.0,0.15649]
[1764848092090,0.5341733,92814.0,92813.0,0.20474]
[1764848093386,0.5234,92814.0,92813.0,0.20474]
[1764848093592,0.44757,92814.0,92813.0,0.20474]
[1764848093888,0.5234,92814.0,92813.0,0.20474]
[1764848094395,0.1626,92814.0,92813.0,0.20474]
[1764848098803,0.005,92814.0,92813.0,0.20474]
[1764848099996,0.1626,92814.0,92813.0,0.20474]
[1764848100300,0.005,92814.0,92813.0,0.20474]
[1764848100502,0.1626,92814.0,92813.0,0.20474]
[1764848101102,0.005,92814.0,92813.0,0.20474]
[1764848101502,0.1626,92814.0,92813.0,0.20474]
[1764848103499,0.1626,92814.0,92813.0,0.15649]
[1764848104208,0.1656,92814.0,92813.0,0.15649]
[1764848104417,0.1647539,92809.0,92808.0,0.16169188]
[1764848104614,0.5255539,92809.0,92808.0,0.16169188]
[1764848106114,0.15398,92807.0,92806.0,0.00026938]
[1764848106611,0.17839191,92807.0,92806.0,0.00026938]
[1764848106810,0.17839191,92807.0,92806.0,0.15090938]
[1764848107208,0.1647567,92785.0,92784.0,0.15064]
[1764848107407,0.0107781,92773.0,92771.0,0.04262]
[1764848107605,0.0107778,92776.0,92771.0,0.04262]
[1764848107813,0.0107778,92776.0,92775.0,0.15064]
[1764848108110,0.5255563,92788.0,92787.0,0.15064]
[1764848108313,0.51478,92788.0,92787.0,0.15064]
[1764848108617,0.3608,92788.0,92787.0,0.15064]
[1764848108806,0.51478,92788.0,92787.0,0.15064]
[1764848109204,0.43995,92788.0,92787.0,0.15064]
[1764848109406,0.3608,92788.0,92787.0,0.15064]
[1764848109817,0.0107747,92802.0,92793.0,0.1614158]
[1764848110321,0.0107748,92802.0,92793.0,0.1614158]
[1764848110501,0.010775,92800.0,92793.0,0.6614158]
[1764848110911,0.0107749,92801.0,92793.0,0.6614158]
[1764848111106,0.0081616,92794.0,92793.0,0.6614158]